Workbook

Sheet complexity-ga
B1: lambda | E1: min | F1: max
A2: 3 | B2: 1 | C2: 17.277 | D2: 0.845895 | E2: =C2-D2 -> 16.431105 | F2: =C2+D2 -> 18.122895
A3: 3 | B3: 2 | C3: 18.654 | D3: 0.867656 | E3: =C3-D3 -> 17.786344 | F3: =C3+D3 -> 19.521656
A4: 3 | B4: 3 | C4: 20.286 | D4: 0.873929 | E4: 19.412071 | F4: 21.159929
A5: 3 | B5: 4 | C5: 21.456 | D5: 0.931518 | E5: 20.524482 | F5: 22.387518
A6: 3 | B6: 5 | C6: 22.56 | D6: 0.927961 | E6: 21.632039 | F6: 23.487961
A7: 3 | B7: 6 | C7: 22.77 | D7: 0.866525 | E7: 21.903475 | F7: 23.636525
A8: 3 | B8: 7 | C8: 24.066 | D8: 0.914537 | E8: 23.151463 | F8: 24.980537
A9: 3 | B9: 8 | C9: 25.04 | D9: 0.918949 | E9: 24.121051 | F9: 25.958949
A10: 3 | B10: 9 | C10: 26.226 | D10: 0.989295 | E10: 25.236705 | F10: 27.215295
A11: 3 | B11: 10 | C11: 28.07 | D11: 1.00336 | E11: 27.06664 | F11: 29.07336
A12: 3 | B12: 11 | C12: 27.401 | D12: 0.988716 | E12: 26.412284 | F12: 28.389716
A13: 3 | B13: 12 | C13: 31.344 | D13: 1.06241 | E13: 30.28159 | F13: 32.40641
A14: 3 | B14: 13 | C14: 29.666 | D14: 1.0896 | E14: 28.5764 | F14: 30.7556
A15: 3 | B15: 14 | C15: 31.43 | D15: 1.07689 | E15: 30.35311 | F15: 32.50689
A16: 3 | B16: 15 | C16: 31.77 | D16: 1.11912 | E16: 30.65088 | F16: 32.88912
A17: 3 | B17: 16 | C17: 33.52 | D17: 1.16863 | E17: 32.35137 | F17: 34.68863
A18: 3 | B18: 17 | C18: 33.847 | D18: 1.18236 | E18: 32.66464 | F18: 35.02936
A19: 3 | B19: 18 | C19: 35.46 | D19: 1.21556 | E19: 34.24444 | F19: 36.67556
A20: 3 | B20: 19 | C20: 36.271 | D20: 1.23197 | E20: 35.03903 | F20: 37.50297
A21: 3 | B21: 20 | C21: 36.72 | D21: 1.2863 | E21: 35.4337 | F21: 38.0063
A22: 3 | B22: 21 | C22: 38.283 | D22: 1.28388 | E22: 36.99912 | F22: 39.56688
A23: 3 | B23: 22 | C23: 38.434 | D23: 1.30082 | E23: 37.13318 | F23: 39.73482
A24: 3 | B24: 23 | C24: 39.537 | D24: 1.35773 | E24: 38.17927 | F24: 40.89473
A25: 3 | B25: 24 | C25: 41.04 | D25: 1.36232 | E25: 39.67768 | F25: 42.40232
A26: 3 | B26: 25 | C26: 41.65 | D26: 1.52272 | E26: 40.12728 | F26: 43.17272
A27: 3 | B27: 26 | C27: 41.262 | D27: 1.37013 | E27: 39.89187 | F27: 42.63213
A28: 3 | B28: 27 | C28: 41.58 | D28: 1.36019 | E28: 40.21981 | F28: 42.94019
A29: 3 | B29: 28 | C29: 43.204 | D29: 1.44209 | E29: 41.76191 | F29: 44.64609
A30: 3 | B30: 29 | C30: 43.297 | D30: 1.42449 | E30: 41.87251 | F30: 44.72149
A31: 3 | B31: 30 | C31: 43.95 | D31: 1.40717 | E31: 42.54283 | F31: 45.35717
A32: 3 | B32: 31 | C32: 45.074 | D32: 1.42721 | E32: 43.64679 | F32: 46.50121
A33: 3 | B33: 32 | C33: 45.152 | D33: 1.41335 | E33: 43.73865 | F33: 46.56535
A34: 3 | B34: 33 | C34: 46.662 | D34: 1.44962 | E34: 45.21238 | F34: 48.11162
A35: 3 | B35: 34 | C35: 47.77 | D35: 1.47911 | E35: 46.29089 | F35: 49.24911
A36: 3 | B36: 35 | C36: 48.335 | D36: 1.48948 | E36: 46.84552 | F36: 49.82448
A37: 3 | B37: 36 | C37: 49.212 | D37: 1.48648 | E37: 47.72552 | F37: 50.69848
A38: 3 | B38: 37 | C38: 49.358 | D38: 1.44273 | E38: 47.91527 | F38: 50.80073
A39: 3 | B39: 38 | C39: 49.058 | D39: 1.40037 | E39: 47.65763 | F39: 50.45837
A40: 3 | B40: 39 | C40: 52.104 | D40: 1.54113 | E40: 50.56287 | F40: 53.64513
A41: 3 | B41: 40 | C41: 52.88 | D41: 1.52749 | E41: 51.35251 | F41: 54.40749
A42: 3 | B42: 41 | C42: 52.48 | D42: 1.57246 | E42: 50.90754 | F42: 54.05246
A43: 3 | B43: 42 | C43: 53.634 | D43: 1.51661 | E43: 52.11739 | F43: 55.15061
A44: 3 | B44: 43 | C44: 55.04 | D44: 1.59646 | E44: 53.44354 | F44: 56.63646
A45: 3 | B45: 44 | C45: 55 | D45: 1.53442 | E45: 53.46558 | F45: 56.53442
A46: 3 | B46: 45 | C46: 56.7 | D46: 1.59617 | E46: 55.10383 | F46: 58.29617
A47: 3 | B47: 46 | C47: 56.718 | D47: 1.59706 | E47: 55.12094 | F47: 58.31506
A48: 3 | B48: 47 | C48: 56.212 | D48: 1.46363 | E48: 54.74837 | F48: 57.67563
A49: 3 | B49: 48 | C49: 58.704 | D49: 1.5291 | E49: 57.1749 | F49: 60.2331
A50: 3 | B50: 49 | C50: 59.829 | D50: 1.58124 | E50: 58.24776 | F50: 61.41024
A51: 4 | B51: 1 | C51: 43.906 | D51: 1.93754 | E51: 41.96846 | F51: 45.84354
A52: 4 | B52: 2 | C52: 46.12 | D52: 1.9356 | E52: 44.1844 | F52: 48.0556
A53: 4 | B53: 3 | C53: 50.787 | D53: 1.93815 | E53: 48.84885 | F53: 52.72515
A54: 4 | B54: 4 | C54: 52.4 | D54: 1.95337 | E54: 50.44663 | F54: 54.35337
A55: 4 | B55: 5 | C55: 53.345 | D55: 1.79506 | E55: 51.54994 | F55: 55.14006
A56: 4 | B56: 6 | C56: 54.96 | D56: 1.74909 | E56: 53.21091 | F56: 56.70909
A57: 4 | B57: 7 | C57: 54.831 | D57: 1.68539 | E57: 53.14561 | F57: 56.51639
A58: 4 | B58: 8 | C58: 55.744 | D58: 1.78496 | E58: 53.95904 | F58: 57.52896
A59: 4 | B59: 9 | C59: 56.376 | D59: 1.53802 | E59: 54.83798 | F59: 57.91402
A60: 4 | B60: 10 | C60: 58.28 | D60: 1.58488 | E60: 56.69512 | F60: 59.86488
A61: 4 | B61: 11 | C61: 63.008 | D61: 1.74331 | E61: 61.26469 | F61: 64.75131
A62: 4 | B62: 12 | C62: 62.568 | D62: 1.62618 | E62: 60.94182 | F62: 64.19418
A63: 4 | B63: 13 | C63: 64.129 | D63: 1.60137 | E63: 62.52763 | F63: 65.73037
A64: 4 | B64: 14 | C64: 65.646 | D64: 1.78393 | E64: 63.86207 | F64: 67.42993
A65: 4 | B65: 15 | C65: 67.38 | D65: 1.70706 | E65: 65.67294 | F65: 69.08706
A66: 4 | B66: 16 | C66: 70.4 | D66: 1.68464 | E66: 68.71536 | F66: 72.08464
A67: 4 | B67: 17 | C67: 71.57 | D67: 1.69199 | E67: =C67-D67 -> 69.87801 | F67: =C67+D67 -> 73.26199
A68: 4 | B68: 18 | C68: 72.216 | D68: 1.85116 | E68: 70.36484 | F68: 74.06716
A69: 4 | B69: 19 | C69: 75.354 | D69: 1.81481 | E69: 73.53919 | F69: 77.16881
A70: 4 | B70: 20 | C70: 79.62 | D70: 1.85371 | E70: 77.76629 | F70: 81.47371
A71: 4 | B71: 21 | C71: 78.498 | D71: 2.04134 | E71: 76.45666 | F71: 80.53934
A72: 4 | B72: 22 | C72: 82.698 | D72: 1.86928 | E72: 80.82872 | F72: 84.56728
A73: 4 | B73: 23 | C73: 86.848 | D73: 2.08495 | E73: 84.76305 | F73: 88.93295
A74: 4 | B74: 24 | C74: 84.384 | D74: 1.90456 | E74: 82.47944 | F74: 86.28856
A75: 4 | B75: 25 | C75: 89.175 | D75: 2.09252 | E75: 87.08248 | F75: 91.26752
A76: 4 | B76: 26 | C76: 90.376 | D76: 2.05801 | E76: 88.31799 | F76: 92.43401
A77: 4 | B77: 27 | C77: 91.503 | D77: 2.0501 | E77: 89.4529 | F77: 93.5531
A78: 4 | B78: 28 | C78: 95.424 | D78: 2.02547 | E78: 93.39853 | F78: 97.44947
A79: 4 | B79: 29 | C79: 94.83 | D79: 2.31774 | E79: 92.51226 | F79: 97.14774
A80: 4 | B80: 30 | C80: 99.63 | D80: 2.0623 | E80: 97.5677 | F80: 101.6923
A81: 4 | B81: 31 | C81: 99.479 | D81: 2.29617 | E81: 97.18283 | F81: 101.77517
A82: 4 | B82: 32 | C82: 104.704 | D82: 2.24072 | E82: 102.46328 | F82: 106.94472
A83: 4 | B83: 33 | C83: 104.28 | D83: 2.54121 | E83: 101.73879 | F83: 106.82121
A84: 4 | B84: 34 | C84: 109.718 | D84: 2.31766 | E84: 107.40034 | F84: 112.03566
A85: 4 | B85: 35 | C85: 108.115 | D85: 2.49003 | E85: 105.62497 | F85: 110.60503
A86: 4 | B86: 36 | C86: 111.636 | D86: 2.41431 | E86: 109.22169 | F86: 114.05031
A87: 4 | B87: 37 | C87: 112.776 | D87: 2.56183 | E87: 110.21417 | F87: 115.33783
A88: 4 | B88: 38 | C88: 114.076 | D88: 2.57796 | E88: 111.49804 | F88: 116.65396
A89: 4 | B89: 39 | C89: 117.975 | D89: 2.8179 | E89: 115.1571 | F89: 120.7929
A90: 4 | B90: 40 | C90: 119.12 | D90: 2.99407 | E90: 116.12593 | F90: 122.11407
A91: 4 | B91: 41 | C91: 120.827 | D91: 2.65295 | E91: 118.17405 | F91: 123.47995
A92: 4 | B92: 42 | C92: 123.522 | D92: 2.80547 | E92: 120.71653 | F92: 126.32747
A93: 4 | B93: 43 | C93: 125.99 | D93: 2.89646 | E93: 123.09354 | F93: 128.88646
A94: 4 | B94: 44 | C94: 126.808 | D94: 2.93214 | E94: 123.87586 | F94: 129.74014
A95: 4 | B95: 45 | C95: 130.05 | D95: 2.97766 | E95: 127.07234 | F95: 133.02766
A96: 4 | B96: 46 | C96: 127.834 | D96: 2.98738 | E96: 124.84662 | F96: 130.82138
A97: 4 | B97: 47 | C97: 130.19 | D97: 3.08139 | E97: 127.10861 | F97: 133.27139
A98: 4 | B98: 48 | C98: 135.84 | D98: 3.07848 | E98: 132.76152 | F98: 138.91848
A99: 4 | B99: 49 | C99: 137.886 | D99: 3.1636 | E99: 134.7224 | F99: 141.0496
A100: 5 | B100: 1 | C100: 83.57 | D100: 3.31685 | E100: 80.25315 | F100: 86.88685 | G100: =SQRT(E100) -> 8.958412248 | H100: =SQRT(F100) -> 9.321311603
A101: 5 | B101: 2 | C101: 88.48 | D101: 3.36119 | E101: 85.11881 | F101: 91.84119 | G101: =SQRT(E101) -> 9.225985584 | H101: =SQRT(F101) -> 9.583380927
A102: 5 | B102: 3 | C102: 98.808 | D102: 3.5562 | E102: 95.2518 | F102: 102.3642 | G102: 9.759702864 | H102: 10.11751946
A103: 5 | B103: 4 | C103: 94.78 | D103: 3.16545 | E103: 91.61455 | F103: 97.94545 | G103: 9.571548986 | H103: 9.896739362
A104: 5 | B104: 5 | C104: 98.3 | D104: 3.35235 | E104: 94.94765 | F104: 101.65235 | G104: 9.744108476 | H104: 10.08227901
A105: 5 | B105: 6 | C105: 99.522 | D105: 3.28832 | E105: 96.23368 | F105: 102.81032 | G105: 9.809876656 | H105: 10.1395424
A106: 5 | B106: 7 | C106: 98.21 | D106: 3.3731 | E106: 94.8369 | F106: 101.5831 | G106: 9.738423897 | H106: 10.07884418
A107: 5 | B107: 8 | C107: 101.568 | D107: 3.60327 | E107: 97.96473 | F107: 105.17127 | G107: 9.897713372 | H107: 10.25530448
A108: 5 | B108: 9 | C108: 101.619 | D108: 2.99964 | E108: 98.61936 | F108: 104.61864 | G108: 9.93072807 | H108: 10.22832538
A109: 5 | B109: 10 | C109: 103.94 | D109: 3.20393 | E109: 100.73607 | F109: 107.14393 | G109: 10.03673602 | H109: 10.35103521
A110: 5 | B110: 11 | C110: 104.566 | D110: 2.99001 | E110: 101.57599 | F110: 107.55601 | G110: 10.07849145 | H110: 10.37092137
A111: 5 | B111: 12 | C111: 104.208 | D111: 3.03073 | E111: 101.17727 | F111: 107.23873 | G111: 10.05869127 | H111: 10.35561345
A112: 5 | B112: 13 | C112: 109.122 | D112: 2.88138 | E112: 106.24062 | F112: 112.00338 | G112: 10.30730906 | H112: 10.58316493
A113: 5 | B113: 14 | C113: 108.57 | D113: 2.82363 | E113: 105.74637 | F113: 111.39363 | G113: 10.2833054 | H113: 10.55431807
A114: 5 | B114: 15 | C114: 108.36 | D114: 2.83237 | E114: 105.52763 | F114: 111.19237 | G114: 10.27266421 | H114: 10.54477928
A115: 5 | B115: 16 | C115: 114.096 | D115: 3.0225 | E115: 111.0735 | F115: 117.1185 | G115: 10.53914133 | H115: 10.8221301
A116: 5 | B116: 17 | C116: 114.937 | D116: 2.90085 | E116: 112.03615 | F116: 117.83785 | G116: 10.58471303 | H116: 10.85531437
A117: 5 | B117: 18 | C117: 116.226 | D117: 2.69885 | E117: 113.52715 | F117: 118.92485 | G117: 10.65491201 | H117: 10.90526708
A118: 5 | B118: 19 | C118: 120.783 | D118: 2.74414 | E118: 118.03886 | F118: 123.52714 | G118: 10.86456902 | H118: 11.1142764
A119: 5 | B119: 20 | C119: 123.78 | D119: 3.05403 | E119: 120.72597 | F119: 126.83403 | G119: 10.98753703 | H119: 11.26206153
A120: 5 | B120: 21 | C120: 127.722 | D120: 2.921 | E120: 124.801 | F120: 130.643 | G120: 11.17143679 | H120: 11.42991689
A121: 5 | B121: 22 | C121: 130.152 | D121: 3.06791 | E121: 127.08409 | F121: 133.21991 | G121: 11.27315794 | H121: 11.54209296
A122: 5 | B122: 23 | C122: 128.524 | D122: 2.63856 | E122: 125.88544 | F122: 131.16256 | G122: 11.21986809 | H122: 11.45262241
A123: 5 | B123: 24 | C123: 134.136 | D123: 3.02892 | E123: 131.10708 | F123: 137.16492 | G123: 11.4502 | H123: 11.71174283
A124: 5 | B124: 25 | C124: 136.425 | D124: 2.91793 | E124: 133.50707 | F124: 139.34293 | G124: 11.55452595 | H124: 11.80436063
A125: 5 | B125: 26 | C125: 137.488 | D125: 2.81499 | E125: 134.67301 | F125: 140.30299 | G125: 11.6048701 | H125: 11.84495631
A126: 5 | B126: 27 | C126: 142.128 | D126: 2.83605 | E126: 139.29195 | F126: 144.96405 | G126: 11.80220107 | H126: 12.04010174
A127: 5 | B127: 28 | C127: 146.524 | D127: 2.9892 | E127: 143.5348 | F127: 149.5132 | G127: 11.98060099 | H127: 12.22755904
A128: 5 | B128: 29 | C128: 145.783 | D128: 2.79294 | E128: 142.99006 | F128: 148.57594 | G128: 11.95784512 | H128: 12.18917306
A129: 5 | B129: 30 | C129: 151.53 | D129: 2.65402 | E129: 148.87598 | F129: 154.18402 | G129: 12.2014745 | H129: 12.41708581
A130: 5 | B130: 31 | C130: 155.62 | D130: 2.8893 | E130: 152.7307 | F130: 158.5093 | G130: 12.35842628 | H130: 12.59004766
A131: 5 | B131: 32 | C131: 155.808 | D131: 3.19603 | E131: =C131-D131 -> 152.61197 | F131: =C131+D131 -> 159.00403 | G131: 12.35362174 | H131: 12.60968001
A132: 5 | B132: 33 | C132: 158.763 | D132: 2.82507 | E132: 155.93793 | F132: 161.58807 | G132: 12.48751096 | H132: 12.71172962
A133: 5 | B133: 34 | C133: 161.874 | D133: 2.81622 | E133: 159.05778 | F133: 164.69022 | G133: 12.61181113 | H133: 12.83316874
A134: 5 | B134: 35 | C134: 166.6 | D134: 2.9076 | E134: 163.6924 | F134: 169.5076 | G134: 12.79423308 | H134: 13.01950844
A135: 5 | B135: 36 | C135: 167.436 | D135: 2.54957 | E135: 164.88643 | F135: 169.98557 | G135: 12.84081111 | H135: 13.03785143
A136: 5 | B136: 37 | C136: 171.532 | D136: 2.47147 | E136: 169.06053 | F136: 174.00347 | G136: 13.00232787 | H136: 13.19103749
A137: 5 | B137: 38 | C137: 173.47 | D137: 2.95028 | E137: 170.51972 | F137: 176.42028 | G137: 13.05831995 | H137: 13.28232961
A138: 5 | B138: 39 | C138: 177.918 | D138: 2.61029 | E138: 175.30771 | F138: 180.52829 | G138: 13.24038179 | H138: 13.43608165
A139: 5 | B139: 40 | C139: 182 | D139: 2.549 | E139: 179.451 | F139: 184.549 | G139: 13.39593222 | H139: 13.5848813
A140: 5 | B140: 41 | C140: 183.475 | D140: 2.8407 | E140: 180.6343 | F140: 186.3157 | G140: 13.44002604 | H140: 13.64975091
A141: 5 | B141: 42 | C141: 187.908 | D141: 2.81007 | E141: 185.09793 | F141: 190.71807 | G141: 13.60507001 | H141: 13.81007132
A142: 5 | B142: 43 | C142: 191.608 | D142: 2.65907 | E142: 188.94893 | F142: 194.26707 | G142: 13.74586956 | H142: 13.93797223
A143: 5 | B143: 44 | C143: 193.644 | D143: 2.90674 | E143: 190.73726 | F143: 196.55074 | G143: 13.81076609 | H143: 14.01965549
A144: 5 | B144: 45 | C144: 200.205 | D144: 3.3496 | E144: 196.8554 | F144: 203.5546 | G144: 14.03051674 | H144: 14.26725622
A145: 5 | B145: 46 | C145: 200.606 | D145: 3.18112 | E145: 197.42488 | F145: 203.78712 | G145: 14.05079642 | H145: 14.27540262
A146: 5 | B146: 47 | C146: 202.241 | D146: 3.01447 | E146: 199.22653 | F146: 205.25547 | G146: 14.11476284 | H146: 14.32673968
A147: 5 | B147: 48 | C147: 207.264 | D147: 3.11828 | E147: 204.14572 | F147: 210.38228 | G147: 14.28795717 | H147: 14.50456066
A148: 5 | B148: 49 | C148: 206.682 | D148: 2.89645 | E148: 203.78555 | F148: 209.57845 | G148: 14.27534763 | H148: 14.47682458
A149: 6 | B149: 1 | C149: 144.074 | D149: 5.46963 | E149: 138.60437 | F149: 149.54363
A150: 6 | B150: 2 | C150: 145.556 | D150: 5.26046 | E150: 140.29554 | F150: 150.81646
A151: 6 | B151: 3 | C151: 158.49 | D151: 5.61635 | E151: 152.87365 | F151: 164.10635
A152: 6 | B152: 4 | C152: 154.956 | D152: 4.84278 | E152: 150.11322 | F152: 159.79878
A153: 6 | B153: 5 | C153: 158.935 | D153: 5.53974 | E153: 153.39526 | F153: 164.47474
A154: 6 | B154: 6 | C154: 159.474 | D154: 5.52761 | E154: 153.94639 | F154: 165.00161
A155: 6 | B155: 7 | C155: 161.042 | D155: 5.31724 | E155: 155.72476 | F155: 166.35924
A156: 6 | B156: 8 | C156: 157.64 | D156: 5.42798 | E156: 152.21202 | F156: 163.06798
A157: 6 | B157: 9 | C157: 156.888 | D157: 4.5755 | E157: 152.3125 | F157: 161.4635
A158: 6 | B158: 10 | C158: 156.99 | D158: 4.394 | E158: 152.596 | F158: 161.384
A159: 6 | B159: 11 | C159: 159.016 | D159: 4.60691 | E159: 154.40909 | F159: 163.62291
A160: 6 | B160: 12 | C160: 163.032 | D160: 4.98783 | E160: 158.04417 | F160: 168.01983
A161: 6 | B161: 13 | C161: 162.487 | D161: 4.88794 | E161: 157.59906 | F161: 167.37494
A162: 6 | B162: 14 | C162: 160.594 | D162: 4.41064 | E162: 156.18336 | F162: 165.00464
A163: 6 | B163: 15 | C163: 168.345 | D163: 4.74566 | E163: 163.59934 | F163: 173.09066
A164: 6 | B164: 16 | C164: 169.024 | D164: 4.4467 | E164: 164.5773 | F164: 173.4707
A165: 6 | B165: 17 | C165: 166.277 | D165: 4.58815 | E165: 161.68885 | F165: 170.86515
A166: 6 | B166: 18 | C166: 173.322 | D166: 5.13868 | E166: 168.18332 | F166: 178.46068
A167: 6 | B167: 19 | C167: 176.073 | D167: 4.48596 | E167: 171.58704 | F167: 180.55896
A168: 6 | B168: 20 | C168: 178.88 | D168: 5.11624 | E168: 173.76376 | F168: 183.99624
A169: 6 | B169: 21 | C169: 181.377 | D169: 5.21182 | E169: 176.16518 | F169: 186.58882
A170: 6 | B170: 22 | C170: 182.446 | D170: 4.83399 | E170: 177.61201 | F170: 187.27999
A171: 6 | B171: 23 | C171: 188.623 | D171: 4.91409 | E171: 183.70891 | F171: 193.53709
A172: 6 | B172: 24 | C172: 183.744 | D172: 4.25063 | E172: 179.49337 | F172: 187.99463
A173: 6 | B173: 25 | C173: 193.925 | D173: 5.53355 | E173: 188.39145 | F173: 199.45855
A174: 6 | B174: 26 | C174: 195 | D174: 5.86434 | E174: 189.13566 | F174: 200.86434
A175: 6 | B175: 27 | C175: 201.393 | D175: 4.86141 | E175: 196.53159 | F175: 206.25441
A176: 6 | B176: 28 | C176: 200.732 | D176: 4.97269 | E176: 195.75931 | F176: 205.70469
A177: 6 | B177: 29 | C177: 202.304 | D177: 4.22306 | E177: 198.08094 | F177: 206.52706
A178: 6 | B178: 30 | C178: 206.04 | D178: 4.63948 | E178: 201.40052 | F178: 210.67948
A179: 6 | B179: 31 | C179: 210.087 | D179: 4.99866 | E179: 205.08834 | F179: 215.08566
A180: 6 | B180: 32 | C180: 213.44 | D180: 4.66656 | E180: 208.77344 | F180: 218.10656
A181: 6 | B181: 33 | C181: 215.457 | D181: 4.65637 | E181: 210.80063 | F181: 220.11337
A182: 6 | B182: 34 | C182: 224.774 | D182: 5.08099 | E182: 219.69301 | F182: 229.85499
A183: 6 | B183: 35 | C183: 219.59 | D183: 3.65227 | E183: 215.93773 | F183: 223.24227
A184: 6 | B184: 36 | C184: 228.06 | D184: 4.69941 | E184: 223.36059 | F184: 232.75941
A185: 6 | B185: 37 | C185: 231.805 | D185: 5.3622 | E185: 226.4428 | F185: 237.1672
A186: 6 | B186: 38 | C186: 231.268 | D186: 4.73065 | E186: 226.53735 | F186: 235.99865
A187: 6 | B187: 39 | C187: 241.293 | D187: 3.90132 | E187: 237.39168 | F187: 245.19432
A188: 6 | B188: 40 | C188: 242.48 | D188: 4.26554 | E188: 238.21446 | F188: 246.74554
A189: 6 | B189: 41 | C189: 245.59 | D189: 4.12177 | E189: 241.46823 | F189: 249.71177
A190: 6 | B190: 42 | C190: 244.398 | D190: 4.02301 | E190: 240.37499 | F190: 248.42101
A191: 6 | B191: 43 | C191: 252.453 | D191: 4.37728 | E191: 248.07572 | F191: 256.83028
A192: 6 | B192: 44 | C192: 255.64 | D192: 4.51189 | E192: 251.12811 | F192: 260.15189
A193: 6 | B193: 45 | C193: 259.29 | D193: 3.64848 | E193: 255.64152 | F193: 262.93848
A194: 6 | B194: 46 | C194: 261.234 | D194: 3.87816 | E194: 257.35584 | F194: 265.11216
A195: 6 | B195: 47 | C195: 266.349 | D195: 3.63539 | E195: =C195-D195 -> 262.71361 | F195: =C195+D195 -> 269.98439
A196: 6 | B196: 48 | C196: 279.12 | D196: 8.13674 | E196: 270.98326 | F196: 287.25674
A197: 6 | B197: 49 | C197: 273.861 | D197: 4.15133 | E197: 269.70967 | F197: 278.01233
A198: 7 | B198: 1 | C198: 206.669 | D198: 7.36445 | E198: 199.30455 | F198: 214.03345
A199: 7 | B199: 2 | C199: 226.594 | D199: 7.7806 | E199: 218.8134 | F199: 234.3746
A200: 7 | B200: 3 | C200: 226.827 | D200: 7.30433 | E200: 219.52267 | F200: 234.13133
... 1126 more rows
